lending/lending_fUSD_20250808
["ID","MTS","AMOUNT","RATE_DAILY","PERIOD"]
[377962673,1754631042774,-870.23,0.00018883,2]
[377962674,1754631042785,-400.0,0.00018883,2]
[377962675,1754631042795,-419.73,0.00018883,2]
[377962676,1754631042804,-400.0,0.00018883,2]
[377962677,1754631042814,-994.73,0.00018883,2]
[377962678,1754631042823,-400.0,0.00018883,2]
[377962679,1754631042832,-400.0,0.00018883,2]
[377962680,1754631042854,-400.0,0.00018883,2]
[377962681,1754631042865,-400.0,0.00018883,2]
[377962682,1754631042876,-563.87,0.00018883,2]
[377962683,1754631042886,-693.4,0.00018883,2]
[377962684,1754631042895,-400.0,0.00018883,2]
[377962685,1754631042905,-463.56,0.00018883,2]
[377962686,1754631042915,-400.0,0.00018883,2]
[377962687,1754631042925,-585.06,0.00018883,2]
[377962688,1754631042934,-731.04,0.00018883,2]
[377962689,1754631042947,-400.0,0.00018883,2]
[377962690,1754631042957,-400.0,0.00018883,2]
[377962691,1754631042967,-400.0,0.00018883,2]
[377962692,1754631042980,-513.79,0.00018883,2]
[377962693,1754631042990,-1505.11,0.00018883,2]
[377962694,1754631043000,-929.54,0.00018883,2]
[377962695,1754631043010,-400.0,0.00018883,2]
[377962696,1754631043020,-652.75,0.00018883,2]
[377962697,1754631043031,-400.0,0.00018883,2]
[377962698,1754631043040,-400.0,0.00018883,2]
[377962699,1754631043050,-639.43,0.00018883,2]
[377962700,1754631043059,-508.3,0.00018883,2]
[377962701,1754631043069,-1981.13,0.00018883,2]
[377962703,1754631043079,-412.93,0.00018883,2]
[377962705,1754631043088,-832.48,0.00018883,2]
[377962707,1754631043098,-400.0,0.00018883,2]
[377962708,1754631043107,-400.0,0.00018883,2]
[377962709,1754631043116,-1052.54,0.00018883,2]
[377962710,1754631043126,-456.69,0.00018883,2]
[377962712,1754631043135,-445.31,0.00018883,2]
[377962714,1754631043144,-400.0,0.00018883,2]
[377962716,1754631043154,-749.41,0.00018883,2]
[377962717,1754631043163,-984.43,0.00018883,2]
[377962718,1754631043172,-192.19411465,0.00018883,2]
[377962719,1754631043182,-400.0,0.00018883,2]
[377962720,1754631043191,-400.0,0.00018883,2]
[377962721,1754631043200,-1327.35,0.00018883,2]
[377962722,1754631043209,-879.14,0.00018883,2]
[377962723,1754631043218,-400.0,0.00018883,2]
[377962724,1754631043228,-826.77,0.00018883,2]
[377962725,1754631043238,-400.0,0.00018883,2]
[377962726,1754631043249,-400.0,0.00018883,2]
[377962727,1754631043258,-982.35,0.00018883,2]
[377962728,1754631043267,-1231.96,0.00018883,2]
[377962729,1754631043278,-164.00523965,0.00018883,2]
[377962730,1754631043287,-400.0,0.00018883,2]
[377962731,1754631043298,-400.0,0.00018883,2]
[377962732,1754631043307,-400.0,0.00018883,2]
[377962733,1754631043316,-975.73,0.00018883,2]
[377962734,1754631043325,-531.02,0.00018883,2]
[377962735,1754631043335,-400.0,0.00018883,2]
[377962736,1754631043345,-2102.85,0.00018883,2]
[377962737,1754631043354,-400.0,0.00018883,2]
[377962738,1754631043364,-400.0,0.00018883,2]
[377962739,1754631043373,-543.33,0.00018883,2]
[377962740,1754631043383,-1299.08,0.00018883,2]
[377962741,1754631043393,-1315.68,0.00018883,2]
[377962742,1754631043402,-400.0,0.00018883,2]
[377962743,1754631043411,-852.24,0.00018883,2]
[377962744,1754631043429,-400.0,0.00018883,2]
[377962745,1754631043439,-871.77,0.00018883,2]
[377962746,1754631043448,-488.99,0.00018883,2]
[377962747,1754631043458,-771.29,0.00018883,2]
[377962748,1754631043467,-400.0,0.00018883,2]
[377962749,1754631043478,-1031.23,0.00018883,2]
[377962750,1754631043488,-400.0,0.00018883,2]
[377962751,1754631043497,-1283.2,0.00018883,2]
[377962752,1754631043507,-400.0,0.00018883,2]
[377962753,1754631043516,-400.0,0.00018883,2]
[377962754,1754631043526,-400.0,0.00018883,2]
[377962755,1754631043536,-400.0,0.00018883,2]
[377962756,1754631043546,-943.36,0.00018883,2]
[377962757,1754631043566,-1063.08,0.00018883,2]
[377962758,1754631043577,-400.0,0.00018883,2]
[377962759,1754631043586,-400.0,0.00018883,2]
[377962760,1754631043595,-400.0,0.00018883,2]
[377962761,1754631043604,-400.0,0.00018883,2]
[377962762,1754631043614,-400.0,0.00018883,2]
[377962763,1754631043623,-892.79,0.00018883,2]
[377962764,1754631043632,-478.35,0.00018883,2]
[377962765,1754631043642,-400.0,0.00018883,2]
[377962766,1754631043651,-400.0,0.00018883,2]
[377962767,1754631043660,-400.0,0.00018883,2]
[377962768,1754631043669,-400.0,0.00018883,2]
[377962769,1754631043679,-616.68,0.00018883,2]
[377962770,1754631043688,-400.0,0.00018883,2]
[377962771,1754631043697,-908.64,0.00018883,2]
[377962772,1754631043707,-575.78,0.00018883,2]
[377962773,1754631043716,-1324.57,0.00018883,2]
[377962774,1754631043725,-1136.5,0.00018883,2]
[377962775,1754631043735,-1132.1,0.00018883,2]
[377962776,1754631043745,-400.0,0.00018883,2]
[377962777,1754631043754,-400.0,0.00018883,2]
[377962778,1754631043764,-400.0,0.00018883,2]
[377962779,1754631043773,-400.0,0.00018883,2]
[377962780,1754631043782,-1410.94,0.00018883,2]
[377962781,1754631043792,-775.59,0.00018883,2]
[377962782,1754631043801,-400.0,0.00018883,2]
[377962783,1754631043811,-400.0,0.00018883,2]
[377962784,1754631043820,-695.59,0.00018883,2]
[377962785,1754631043830,-896.55,0.00018883,2]
[377962786,1754631043840,-400.0,0.00018883,2]
[377962787,1754631043851,-1120.74,0.00018883,2]
[377962788,1754631043861,-1919.83,0.00018883,2]
[377962789,1754631043870,-527.97,0.00018883,2]
[377962790,1754631043880,-400.0,0.00018883,2]
[377962791,1754631043889,-400.0,0.00018883,2]
[377962792,1754631043898,-1258.29,0.00018883,2]
[377962793,1754631043908,-797.37,0.00018883,2]
[377962794,1754631043917,-492.13,0.00018883,2]
[377962795,1754631043926,-793.2,0.00018883,2]
[377962796,1754631043936,-559.8,0.00018883,2]
[377962797,1754631043948,-797.2,0.00018883,2]
[377962798,1754631043957,-400.0,0.00018883,2]
[377962799,1754631043967,-575.69,0.00018883,2]
[377962800,1754631043980,-903.64,0.00018883,2]
[377962801,1754631043990,-1391.66,0.00018883,2]
[377962802,1754631044000,-1625.61,0.00018883,2]
[377962803,1754631044010,-400.0,0.00018883,2]
[377962804,1754631044019,-410.99,0.00018883,2]
[377962805,1754631044029,-400.0,0.00018883,2]
[377962806,1754631044039,-476.03,0.00018883,2]
[377962807,1754631044048,-961.43,0.00018883,2]
[377962808,1754631044059,-400.0,0.00018883,2]
[377962809,1754631044070,-400.0,0.00018883,2]
[377962810,1754631044079,-400.0,0.00018883,2]
[377962811,1754631044088,-973.45,0.00018883,2]
[377962812,1754631044098,-1523.51,0.00018883,2]
[377962813,1754631044108,-177.51291611,0.00018883,2]
[377962814,1754631044117,-400.0,0.00018883,2]
[377962815,1754631044127,-400.0,0.00018883,2]
[377962816,1754631044137,-400.0,0.00018883,2]
[377962817,1754631044148,-1464.7,0.00018883,2]
[377962818,1754631044158,-586.7,0.00018883,2]
[377962819,1754631044168,-977.51,0.00018883,2]
[377962820,1754631044180,-400.0,0.00018883,2]
[377962821,1754631044191,-400.0,0.00018883,2]
[377962822,1754631044201,-207.8864669,0.00018883,2]
[377962823,1754631044210,-400.0,0.00018883,2]
[377962824,1754631044220,-1408.94,0.00018883,2]
[377962825,1754631044229,-456.51,0.00018883,2]
[377962826,1754631044240,-400.0,0.00018883,2]
[377962827,1754631044249,-400.0,0.00018883,2]
[377962828,1754631044258,-1378.18,0.00018883,2]
[377962829,1754631044267,-887.15,0.00018883,2]
[377962830,1754631044277,-400.0,0.00018883,2]
[377962831,1754631044286,-400.0,0.00018883,2]
[377962832,1754631044295,-400.0,0.00018883,2]
[377962833,1754631044304,-1445.93,0.00018883,2]
[377962834,1754631044313,-587.59,0.00018883,2]
[377962835,1754631044323,-409.06,0.00018883,2]
[377962836,1754631044332,-1160.66,0.00018883,2]
[377962837,1754631044341,-400.0,0.00018883,2]
[377962838,1754631044351,-400.0,0.00018883,2]
[377962839,1754631044360,-820.24,0.00018883,2]
[377962840,1754631044369,-840.77,0.00018883,2]
[377962841,1754631044379,-400.0,0.00018883,2]
[377962842,1754631044388,-400.0,0.00018883,2]
[377962843,1754631044398,-400.0,0.00018883,2]
[377962844,1754631044407,-795.0,0.00018883,2]
[377962845,1754631044416,-1275.91,0.00018883,2]
[377962846,1754631044426,-400.0,0.00018883,2]
[377962847,1754631044435,-622.01,0.00018883,2]
[377962848,1754631044445,-400.0,0.00018883,2]
[377962849,1754631044455,-1498.94,0.00018883,2]
[377962850,1754631044464,-1483.4,0.00018883,2]
[377962851,1754631044473,-400.0,0.00018883,2]
[377962852,1754631044483,-9.06204177,0.00018883,2]
[377962880,1754631045521,-770.88403993,0.00018835,2]
[377962882,1754631045530,-507.53037699,0.00018881,2]
[377962884,1754631045539,-238.43983362,0.00018881,2]
[377962886,1754631045548,-400.0,0.00018882,2]
[377962888,1754631045557,-518.07,0.00018882,2]
[377962890,1754631045566,-411.14,0.00018882,2]
[377962892,1754631045575,-488.22795823,0.00018883,2]
[377962894,1754631045585,-777.24,0.00018883,2]
[377962896,1754631045594,-1156.09,0.00018883,2]
[377962898,1754631045604,-400.0,0.00018883,2]
[377962900,1754631045614,-1476.53,0.00018883,2]
[377962902,1754631045624,-1104.27,0.00018883,2]
[377962903,1754631045633,-400.0,0.00018883,2]
[377962905,1754631045643,-1131.33,0.00018883,2]
[377962908,1754631045652,-1803.65,0.00018883,2]
[377962909,1754631045662,-516.58,0.00018883,2]
[377962912,1754631045672,-763.37,0.00018883,2]
[377962913,1754631045681,-770.42,0.00018883,2]
[377962915,1754631045691,-1576.25,0.00018883,2]
[377962917,1754631045700,-400.0,0.00018883,2]
[377962919,1754631045709,-1222.28,0.00018883,2]
[377962921,1754631045718,-1780.1,0.00018883,2]
[377962923,1754631045727,-400.0,0.00018883,2]
[377962925,1754631045737,-785.11,0.00018883,2]
[377962927,1754631045746,-400.0,0.00018883,2]
[377962929,1754631045755,-628.24,0.00018883,2]
[377962931,1754631045764,-463.16,0.00018883,2]
[377962933,1754631045774,-733.48,0.00018883,2]
[377962935,1754631045783,-929.27,0.00018883,2]
[377962937,1754631045792,-400.0,0.00018883,2]
[377962940,1754631045802,-1117.87,0.00018883,2]
[377962941,1754631045811,-400.0,0.00018883,2]
[377962943,1754631045820,-1276.06,0.00018883,2]
[377962945,1754631045829,-802.82,0.00018883,2]
[377962947,1754631045839,-1223.72,0.00018883,2]
[377962949,1754631045848,-400.0,0.00018883,2]
[377962951,1754631045857,-1402.37,0.00018883,2]
[377962953,1754631045866,-529.09,0.00018883,2]
[377962955,1754631045876,-1247.88,0.00018883,2]
[377962957,1754631045885,-401.6836002,0.00018883,2]
[377962959,1754631045894,-400.0,0.00018883,2]
[377962961,1754631045903,-594.72,0.00018883,2]
[377962963,1754631045912,-400.0,0.00018883,2]
[377962965,1754631045921,-1687.86,0.00018883,2]
[377962966,1754631045931,-732.38,0.00018883,2]
[377962967,1754631045941,-1077.07,0.00018883,2]
[377962968,1754631045951,-874.0,0.00018883,2]
[377962969,1754631045960,-1117.72,0.00018883,2]
[377962970,1754631045970,-888.08,0.00018883,2]
[377962971,1754631045983,-773.31,0.00018883,2]
[377962972,1754631045994,-400.0,0.00018883,2]
[377962973,1754631046004,-400.0,0.00018883,2]
[377962974,1754631046015,-400.0,0.00018883,2]
[377962975,1754631046024,-449.67,0.00018883,2]
[377962976,1754631046034,-400.0,0.00018883,2]
[377962977,1754631046043,-813.4,0.00018883,2]
[377962978,1754631046053,-891.55,0.00018883,2]
[377962979,1754631046066,-638.27,0.00018883,2]
[377962980,1754631046076,-1318.45,0.00018883,2]
[377962981,1754631046085,-400.0,0.00018883,2]
[377962982,1754631046094,-239.2808719,0.00018883,2]
[377962983,1754631046103,-885.33,0.00018883,2]
[377962984,1754631046113,-400.0,0.00018883,2]
[377962985,1754631046122,-552.02,0.00018883,2]
[377962986,1754631046131,-680.59,0.00018883,2]
[377962987,1754631046140,-755.07,0.00018883,2]
[377962988,1754631046149,-551.27,0.00018883,2]
[377962989,1754631046158,-1125.64,0.00018883,2]
[377962990,1754631046167,-1620.52,0.00018883,2]
[377962991,1754631046176,-1615.97,0.00018883,2]
[377962992,1754631046185,-400.0,0.00018883,2]
[377962993,1754631046194,-2042.39,0.00018883,2]
[377962994,1754631046203,-400.0,0.00018883,2]
[377962995,1754631046212,-674.44,0.00018883,2]
[377962996,1754631046221,-1603.94,0.00018883,2]
[377962997,1754631046230,-400.0,0.00018883,2]
[377962998,1754631046240,-1151.5,0.00018883,2]
[377962999,1754631046249,-997.88,0.00018883,2]
[377963000,1754631046258,-14374.4,0.00018883,2]
[377963001,1754631046268,-528.88,0.00018883,2]
[377963002,1754631046277,-400.0,0.00018883,2]
[377963003,1754631046286,-400.0,0.00018883,2]
[377963004,1754631046295,-855.67,0.00018883,2]
[377963005,1754631046305,-768.33,0.00018883,2]
[377963006,1754631046314,-1221.74,0.00018883,2]
[377963007,1754631046324,-400.0,0.00018883,2]
[377963009,1754631046333,-400.0,0.00018883,2]
[377963010,1754631046343,-400.0,0.00018883,2]
[377963011,1754631046352,-422.03,0.00018883,2]
[377963012,1754631046362,-544.75,0.00018883,2]
[377963013,1754631046370,-791.79,0.00018883,2]
[377963014,1754631046379,-627.52,0.00018883,2]
[377963015,1754631046388,-411.51,0.00018883,2]
[377963016,1754631046397,-534.0,0.00018883,2]
[377963017,1754631046407,-400.0,0.00018883,2]
[377963018,1754631046415,-973.34,0.00018883,2]
[377963019,1754631046425,-381.47794186,0.00018883,2]
[377963020,1754631046434,-1466.41,0.00018883,2]
[377963021,1754631046443,-400.0,0.00018883,2]
[377963022,1754631046452,-400.0,0.00018883,2]
[377963023,1754631046461,-400.0,0.00018883,2]
[377963024,1754631046471,-712.18,0.00018883,2]
[377963025,1754631046480,-607.55,0.00018883,2]
[377963026,1754631046489,-400.0,0.00018883,2]
[377963027,1754631046499,-400.0,0.00018883,2]
[377963028,1754631046508,-400.0,0.00018883,2]
[377963029,1754631046518,-400.0,0.00018883,2]
[377963030,1754631046528,-724.43,0.00018883,2]
[377963031,1754631046538,-883.4,0.00018883,2]
[377963032,1754631046548,-1802.73,0.00018883,2]
[377963033,1754631046558,-881.04,0.00018883,2]
[377963034,1754631046567,-1175.92,0.00018883,2]
[377963035,1754631046576,-400.0,0.00018883,2]
[377963036,1754631046586,-1246.34,0.00018883,2]
[377963037,1754631046595,-1139.62,0.00018883,2]
[377963038,1754631046604,-806.54,0.00018883,2]
[377963039,1754631046614,-400.0,0.00018883,2]
[377963040,1754631046623,-400.0,0.00018883,2]
[377963041,1754631046633,-400.0,0.00018883,2]
[377963042,1754631046642,-403.32,0.00018883,2]
[377963043,1754631046652,-400.0,0.00018883,2]
[377963044,1754631046661,-1381.22,0.00018883,2]
[377963045,1754631046671,-1141.19,0.00018883,2]
[377963046,1754631046680,-1103.85,0.00018883,2]
[377963047,1754631046689,-721.19,0.00018883,2]
[377963048,1754631046698,-400.0,0.00018883,2]
[377963049,1754631046708,-888.1,0.00018883,2]
[377963050,1754631046717,-400.0,0.00018883,2]
[377963051,1754631046726,-768.97,0.00018883,2]
[377963052,1754631046735,-400.0,0.00018883,2]
[377963053,1754631046750,-400.0,0.00018883,2]
[377963054,1754631046766,-400.0,0.00018883,2]
[377963055,1754631046778,-1115.19,0.00018883,2]
[377963056,1754631046788,-403.27,0.00018883,2]
[377963057,1754631046797,-552.32,0.00018883,2]
[377963058,1754631046807,-400.0,0.00018883,2]
[377963059,1754631046816,-400.0,0.00018883,2]
[377963060,1754631046826,-913.21,0.00018883,2]
[377963061,1754631046835,-620.58,0.00018883,2]
[377963062,1754631046845,-400.0,0.00018883,2]
[377963063,1754631046854,-1679.97,0.00018883,2]
[377963064,1754631046864,-400.0,0.00018883,2]
[377963065,1754631046873,-826.24,0.00018883,2]
[377963066,1754631046882,-1502.98,0.00018883,2]
[377963067,1754631046892,-400.0,0.00018883,2]
[377963068,1754631046902,-400.0,0.00018883,2]
[377963069,1754631046912,-689.63,0.00018883,2]
[377963070,1754631046922,-569.07,0.00018883,2]
[377963071,1754631046931,-853.79,0.00018883,2]
[377963072,1754631046942,-572.45,0.00018883,2]
[377963073,1754631046952,-2070.57,0.00018883,2]
[377963074,1754631046962,-1297.72,0.00018883,2]
[377963075,1754631046972,-400.0,0.00018883,2]
[377963076,1754631046985,-400.0,0.00018883,2]
[377963077,1754631046994,-573.5,0.00018883,2]
[377963078,1754631047004,-493.21,0.00018883,2]
[377963079,1754631047014,-1594.91,0.00018883,2]
[377963080,1754631047023,-646.96,0.00018883,2]
[377963081,1754631047033,-400.0,0.00018883,2]
[377963082,1754631047042,-1005.94,0.00018883,2]
[377963083,1754631047052,-507.75,0.00018883,2]
[377963084,1754631047062,-512.85,0.00018883,2]
[377963085,1754631047072,-1137.22,0.00018883,2]
[377963086,1754631047085,-400.0,0.00018883,2]
[377963087,1754631047095,-400.0,0.00018883,2]
[377963088,1754631047105,-261.00272414,0.00018883,2]
[377963089,1754631047114,-418.79,0.00018883,2]
[377963090,1754631047123,-705.71,0.00018883,2]
[377963091,1754631047133,-846.61,0.00018883,2]
[377963092,1754631047142,-400.0,0.00018883,2]
[377963093,1754631047151,-491.34614465,0.00018883,2]
[377963094,1754631047161,-1379.35,0.00018883,2]
[377963095,1754631047170,-400.0,0.00018883,2]
[377963096,1754631047179,-400.0,0.00018883,2]
[377963097,1754631047190,-448.88,0.00018883,2]
[377963098,1754631047199,-1027.68,0.00018883,2]
[377963099,1754631047209,-489.42,0.00018883,2]
[377963100,1754631047218,-400.0,0.00018883,2]
[377963101,1754631047229,-984.49,0.00018883,2]
[377963102,1754631047238,-1545.55,0.00018883,2]
[377963103,1754631047247,-495.94,0.00018883,2]
[377963104,1754631047258,-1290.07,0.00018883,2]
[377963105,1754631047268,-416.1,0.00018883,2]
[377963106,1754631047278,-1155.54,0.00018883,2]
[377963107,1754631047289,-400.0,0.00018883,2]
[377963108,1754631047298,-400.0,0.00018883,2]
[377963109,1754631047307,-511.52,0.00018883,2]
[377963110,1754631047317,-400.0,0.00018883,2]
[377963111,1754631047327,-1117.87,0.00018883,2]
[377963112,1754631047337,-1140.01,0.00018883,2]
[377963113,1754631047346,-805.67,0.00018883,2]
[377963114,1754631047356,-854.4,0.00018883,2]
[377963115,1754631047366,-814.75,0.00018883,2]
[377963116,1754631047377,-400.0,0.00018883,2]
[377963117,1754631047387,-400.0,0.00018883,2]
[377963118,1754631047396,-400.0,0.00018883,2]
[377963119,1754631047406,-1309.41,0.00018883,2]
[377963120,1754631047415,-633.23,0.00018883,2]
[377963121,1754631047424,-500.0,0.00018883,2]
[377963122,1754631047434,-400.0,0.00018883,2]
[377963123,1754631047443,-400.0,0.00018883,2]
[377963124,1754631047453,-403.5,0.00018883,2]
[377963125,1754631047463,-756.31,0.00018883,2]
[377963126,1754631047472,-1100.58,0.00018883,2]
[377963127,1754631047482,-400.0,0.00018883,2]
[377963128,1754631047491,-1033.96404333,0.00018884,2]
[377963129,1754631047501,-400.0,0.00018884,2]
[377963130,1754631047511,-695.69,0.00018884,2]
[377963131,1754631047520,-441.36,0.00018884,2]
[377963132,1754631047532,-946.75,0.00018884,2]
[377963133,1754631047541,-400.0,0.00018884,2]
[377963134,1754631047550,-400.0,0.00018884,2]
[377963135,1754631047559,-400.0,0.00018884,2]
[377963136,1754631047568,-441.45,0.00018884,2]
[377963137,1754631047578,-825.85,0.00018884,2]
[377963138,1754631047588,-400.0,0.00018884,2]
[377963139,1754631047597,-400.0,0.00018884,2]
[377963140,1754631047606,-403.08,0.00018884,2]
[377963141,1754631047615,-400.0,0.00018884,2]
[377963142,1754631047624,-683.91,0.00018884,2]
[377963143,1754631047634,-400.0,0.00018884,2]
[377963144,1754631047643,-400.0,0.00018884,2]
[377963145,1754631047652,-400.0,0.00018884,2]
[377963146,1754631047661,-400.0,0.00018884,2]
[377963147,1754631047670,-465.15,0.00018884,2]
[377963148,1754631047679,-400.0,0.00018884,2]
[377963149,1754631047688,-400.0,0.00018884,2]
[377963150,1754631047698,-400.0,0.00018884,2]
[377963151,1754631047707,-547.98,0.00018884,2]
[377963152,1754631047716,-400.0,0.00018884,2]
[377963153,1754631047725,-400.0,0.00018884,2]
[377963154,1754631047734,-549.39,0.00018884,2]
[377963155,1754631047743,-400.0,0.00018884,2]
[377963156,1754631047752,-778.9,0.00018884,2]
[377963157,1754631047762,-510.06,0.00018884,2]
[377963158,1754631047771,-886.34,0.00018884,2]
[377963159,1754631047780,-400.0,0.00018884,2]
[377963160,1754631047790,-437.26145094,0.00018884,2]
[377963161,1754631047799,-400.0,0.00018884,2]
[377963162,1754631047808,-400.0,0.00018884,2]
[377963163,1754631047817,-400.0,0.00018884,2]
[377963164,1754631047826,-400.0,0.00018884,2]
[377963165,1754631047835,-400.0,0.00018884,2]
[377963166,1754631047845,-400.0,0.00018884,2]
[377963167,1754631047853,-808.31,0.00018884,2]
[377963168,1754631047863,-400.0,0.00018884,2]
[377963169,1754631047873,-957.14,0.00018884,2]
[377963170,1754631047882,-400.0,0.00018884,2]
[377963171,1754631047892,-400.0,0.00018884,2]
[377963172,1754631047902,-400.0,0.00018884,2]
[377963173,1754631047912,-885.63,0.00018884,2]
[377963174,1754631047922,-400.0,0.00018884,2]
[377963175,1754631047932,-400.0,0.00018884,2]
[377963176,1754631047942,-400.0,0.00018884,2]
[377963177,1754631047953,-400.0,0.00018884,2]
[377963178,1754631047963,-400.0,0.00018884,2]
[377963179,1754631047972,-941.25,0.00018884,2]
[377963180,1754631047986,-400.0,0.00018884,2]
[377963181,1754631047996,-416.64,0.00018884,2]
[377963182,1754631048006,-901.28,0.00018884,2]
[377963183,1754631048018,-484.42,0.00018884,2]
[377963184,1754631048028,-776.64,0.00018884,2]
[377963185,1754631048040,-400.0,0.00018884,2]
[377963186,1754631048052,-400.0,0.00018884,2]
[377963187,1754631048064,-400.0,0.00018884,2]
[377963188,1754631048075,-239.30727566,0.00018884,2]
[377963189,1754631048085,-400.0,0.00018884,2]
[377963190,1754631048096,-400.0,0.00018884,2]
[377963191,1754631048107,-400.0,0.00018884,2]
[377963192,1754631048116,-413.0397659,0.00018884,2]
[377963193,1754631048126,-400.0,0.00018884,2]
[377963194,1754631048136,-400.0,0.00018884,2]
[377963195,1754631048147,-927.29,0.00018884,2]
[377963196,1754631048157,-1097.29,0.00018884,2]
[377963197,1754631048167,-739.68,0.00018884,2]
[377963198,1754631048178,-3367.29,0.00018884,2]
[377963199,1754631048187,-400.0,0.00018884,2]
[377963200,1754631048197,-400.0,0.00018884,2]
[377963201,1754631048207,-400.0,0.00018884,2]
[377963202,1754631048217,-400.0,0.00018884,2]
[377963203,1754631048226,-629.04,0.00018884,2]
[377963204,1754631048236,-550.18,0.00018884,2]
[377963205,1754631048248,-400.0,0.00018884,2]
[377963206,1754631048259,-955.08,0.00018884,2]
[377963207,1754631048268,-487.31,0.00018884,2]
[377963208,1754631048278,-400.0,0.00018884,2]
[377963209,1754631048288,-879.47,0.00018884,2]
[377963210,1754631048298,-400.0,0.00018884,2]
[377963211,1754631048307,-673.3,0.00018884,2]
[377963212,1754631048317,-421.92,0.00018884,2]
[377963213,1754631048326,-400.0,0.00018884,2]
[377963214,1754631048336,-400.0,0.00018884,2]
[377963215,1754631048346,-400.0,0.00018884,2]
[377963216,1754631048356,-1700.13,0.00018884,2]
[377963217,1754631048366,-400.0,0.00018884,2]
[377963218,1754631048376,-690.94,0.00018884,2]
[377963219,1754631048386,-400.0,0.00018884,2]
[377963220,1754631048396,-478.1,0.00018884,2]
[377963221,1754631048406,-400.0,0.00018884,2]
[377963222,1754631048415,-400.0,0.00018884,2]
[377963223,1754631048425,-400.0,0.00018884,2]
[377963224,1754631048435,-1349.42,0.00018884,2]
[377963225,1754631048445,-437.53,0.00018884,2]
[377963226,1754631048455,-400.0,0.00018884,2]
[377963227,1754631048465,-400.0,0.00018884,2]
[377963228,1754631048475,-400.0,0.00018884,2]
[377963229,1754631048485,-529.4,0.00018884,2]
[377963230,1754631048495,-4086.71,0.00018884,2]
[377963231,1754631048505,-400.0,0.00018884,2]
[377963232,1754631048515,-410.88,0.00018884,2]
[377963233,1754631048524,-400.0,0.00018884,2]
[377963234,1754631048534,-400.0,0.00018884,2]
[377963235,1754631048544,-1180.49,0.00018884,2]
[377963236,1754631048554,-400.0,0.00018884,2]
[377963237,1754631048564,-400.0,0.00018884,2]
[377963238,1754631048574,-569.34,0.00018884,2]
[377963239,1754631048584,-1650.55,0.00018884,2]
[377963240,1754631048594,-1566.89,0.00018884,2]
[377963241,1754631048603,-400.0,0.00018884,2]
[377963242,1754631048613,-2014.86,0.00018884,2]
[377963243,1754631048622,-685.27,0.00018884,2]
[377963244,1754631048632,-400.0,0.00018884,2]
[377963245,1754631048642,-1451.01,0.00018884,2]
[377963246,1754631048651,-400.0,0.00018884,2]
[377963247,1754631048661,-1285.39,0.00018884,2]
[377963248,1754631048671,-2357.95,0.00018884,2]